bitfinex/quotes_BTCUSD_20250624
["timestamp","ask_amount","ask_price","bid_price","bid_amount"]
[1750723678559,0.42586189,105580.0,105570.0,4.61e-05]
[1750723678950,1.13457776,105580.0,105570.0,4.61e-05]
[1750723679142,1.27981578,105580.0,105570.0,4.61e-05]
[1750723679348,6.41852205,105580.0,105570.0,4.61e-05]
[1750723679614,6.42799309,105580.0,105570.0,4.61e-05]
[1750723679967,6.41852205,105580.0,105570.0,4.61e-05]
[1750723680217,6.427993,105580.0,105570.0,4.61e-05]
[1750723680397,6.31469379,105580.0,105570.0,4.61e-05]
[1750723680765,6.31468327,105580.0,105570.0,4.61e-05]
[1750723681020,0.0323,105550.0,105540.0,0.0002]
[1750723681224,0.73186988,105550.0,105540.0,0.00024611]
[1750723681439,0.12780186,105550.0,105540.0,0.00972101]
[1750723681647,0.0283208,105570.0,105540.0,0.00972101]
[1750723681648,0.0323,105570.0,105560.0,0.0094731]
[1750723681813,0.59830186,105570.0,105560.0,0.07566085]
[1750723682024,0.43550186,105570.0,105550.0,0.29354798]
[1750723682241,0.43550186,105570.0,105560.0,0.20841217]
[1750723682242,0.09550186,105570.0,105560.0,0.20841217]
[1750723682488,0.09550186,105570.0,105560.0,0.21788509]
[1750723682613,0.1638,105580.0,105560.0,0.21788446]
[1750723682821,0.09650186,105580.0,105560.0,0.21788446]
[1750723683017,0.09650186,105580.0,105560.0,0.20841181]
[1750723683219,0.09650186,105580.0,105560.0,0.21888464]
[1750723683464,0.11300186,105580.0,105560.0,0.20941199]
[1750723683695,0.11300186,105580.0,105560.0,0.22835756]
[1750723683845,0.11600186,105580.0,105560.0,0.21888491]
[1750723684236,0.11600186,105580.0,105560.0,0.20941199]
[1750723684438,0.13180186,105580.0,105560.0,0.218885]
[1750723684644,0.13180186,105580.0,105560.0,0.22735783]
[1750723684866,0.13380186,105580.0,105560.0,0.23683057]
[1750723685044,0.29668186,105580.0,105560.0,0.23682994]
[1750723685447,0.29668186,105580.0,105560.0,0.22735738]
[1750723685644,0.29668186,105580.0,105560.0,0.20841181]
[1750723685894,0.29668186,105580.0,105560.0,0.1989388]
[1750723686195,0.29668186,105580.0,105560.0,0.21788473]
[1750723686343,0.29668186,105580.0,105560.0,0.23683012]
[1750723686553,0.26438186,105580.0,105570.0,0.00947229]
[1750723686908,0.26438186,105580.0,105570.0,0.01894449]
[1750723687109,0.26438186,105580.0,105560.0,0.21788401]
[1750723687319,0.26438186,105580.0,105570.0,0.19892013]
[1750723687502,0.26138186,105580.0,105570.0,0.20839242]
[1750723687700,0.25938186,105580.0,105570.0,0.20839242]
[1750723687934,0.26238186,105580.0,105570.0,0.20839242]
[1750723688147,0.007,105580.0,105570.0,0.19892013]
[1750723688358,0.007,105580.0,105570.0,0.2273361]
[1750723688559,0.007,105580.0,105570.0,0.21786426]
[1750723688794,0.007,105580.0,105570.0,0.20839233]
[1750723689017,0.007,105580.0,105570.0,0.19892013]
[1750723689251,0.007,105580.0,105570.0,0.20839242]
[1750723689466,0.007,105580.0,105570.0,0.23680839]
[1750723689902,0.007,105580.0,105570.0,0.22733664]
[1750723690108,0.007,105580.0,105570.0,0.23680803]
[1750723690318,0.004,105580.0,105570.0,0.23680794]
[1750723690782,0.001,105580.0,105570.0,0.23680794]
[1750723691180,0.001,105580.0,105570.0,0.23780794]
[1750723691892,0.001,105580.0,105570.0,0.27030794]
[1750723692106,0.001,105580.0,105570.0,0.31518794]
[1750723692569,0.001,105580.0,105570.0,0.27321601]
[1750723693084,0.001,105580.0,105570.0,0.28911601]
[1750723694190,0.001,105580.0,105570.0,0.26374426]
[1750723694378,0.001,105580.0,105570.0,0.2732161]
[1750723694644,0.001,105580.0,105570.0,0.28268785]
[1750723694785,0.001,105580.0,105570.0,0.27321619]
[1750723694991,0.001,105580.0,105570.0,0.26374417]
[1750723695191,0.001,105580.0,105570.0,0.26374426]
[1750723695843,0.001,105580.0,105570.0,0.26374435]
[1750723696184,0.001,105580.0,105570.0,0.19992004]
[1750723696385,0.90846988,105580.0,105570.0,0.001]
[1750723696790,1.07130988,105580.0,105570.0,0.001]
[1750723697631,0.63004186,105580.0,105570.0,0.19044775]
[1750723697830,0.63004186,105580.0,105570.0,0.001]
[1750723698255,0.63004186,105580.0,105570.0,0.19044775]
[1750723698458,0.43650186,105580.0,105570.0,0.20939206]
[1750723698659,0.43650186,105580.0,105570.0,0.22833565]
[1750723699012,0.43650186,105580.0,105570.0,0.21886399]
[1750723699212,0.43650186,105580.0,105570.0,0.22833583]
[1750723699415,0.43650186,105580.0,105570.0,0.23780758]
[1750723699617,0.43650186,105580.0,105570.0,0.21886399]
[1750723699796,0.43650186,105580.0,105570.0,0.19992004]
[1750723700339,0.43650186,105580.0,105570.0,0.19044775]
[1750723700543,0.43650186,105580.0,105570.0,0.19992013]
[1750723700746,0.43650186,105580.0,105570.0,0.21886444]
[1750723700991,0.43650186,105580.0,105570.0,0.22833619]
[1750723702281,0.43650186,105580.0,105570.0,0.20939242]
[1750723702487,0.43650186,105580.0,105570.0,0.21886462]
[1750723702904,0.43650186,105580.0,105570.0,0.23780875]
[1750723703107,0.43650186,105580.0,105570.0,0.22833637]
[1750723703108,0.341,105580.0,105570.0,0.22833637]
[1750723703730,0.341,105580.0,105570.0,0.19992004]
[1750723704144,0.341,105580.0,105570.0,0.19044775]
[1750723704347,0.74861563,105580.0,105570.0,0.001]
[1750723704560,0.74861563,105580.0,105570.0,0.19044775]
[1750723704986,0.74861563,105580.0,105570.0,0.001]
[1750723706463,0.46640186,105580.0,105570.0,0.001]
[1750723706674,0.74861563,105580.0,105570.0,0.001]
[1750723707100,0.91145563,105580.0,105570.0,0.001]
[1750723709146,0.62924186,105580.0,105570.0,0.001]
[1750723709379,0.43550186,105580.0,105570.0,0.19044775]
[1750723709601,0.43550186,105580.0,105570.0,0.19992004]
[1750723710103,0.43550186,105580.0,105570.0,0.21886417]
[1750723710325,0.09550186,105580.0,105570.0,0.23780776]
[1750723713174,0.3715,105590.0,105580.0,0.20837243]
[1750723713383,0.38047761,105590.0,105580.0,0.20837243]
[1750723713607,0.38047761,105590.0,105580.0,0.21784356]
[1750723713812,0.38047753,105590.0,105580.0,0.21784356]
[1750723714036,0.38047753,105590.0,105580.0,0.20837243]
[1750723714455,0.38047753,105590.0,105580.0,0.21784356]
[1750723714676,0.34,105590.0,105580.0,0.24311442]
[1750723714882,0.34,105590.0,105580.0,0.25851442]
[1750723715100,0.341,105590.0,105580.0,0.25851442]
[1750723715341,0.002,105590.0,105580.0,0.30335442]
[1750723715535,0.002,105590.0,105580.0,0.46615442]
[1750723715758,0.002,105590.0,105580.0,0.49462942]
[1750723716207,0.001,105590.0,105580.0,0.49462942]
[1750723716435,0.001,105590.0,105580.0,0.49662942]
[1750723717318,0.001,105590.0,105580.0,1.04270907]
[1750723717590,0.0051,105600.0,105590.0,0.24962256]
[1750723719064,0.0051,105600.0,105590.0,0.25462256]
[1750723720808,0.0051,105600.0,105590.0,0.69548386]
[1750723721014,0.0051,105600.0,105590.0,0.25462256]
[1750723723677,0.0051,105600.0,105590.0,0.35012442]
[1750723723881,0.0051,105600.0,105590.0,1.08718572]
[1750723724464,0.0051,105600.0,105590.0,1.08518572]
[1750723724690,0.0051,105600.0,105590.0,1.08218572]
[1750723724912,0.0051,105600.0,105590.0,0.64632442]
[1750723725190,0.0051,105600.0,105590.0,0.65432442]
[1750723725364,0.0051,105600.0,105590.0,1.09518572]
[1750723726535,0.0051,105600.0,105590.0,1.10972657]
[1750723727631,0.0051,105600.0,105590.0,1.44972657]
[1750723729733,0.0051,105600.0,105590.0,1.67724657]
[1750723732077,0.0051,105600.0,105590.0,1.72724657]
[1750723732287,0.0051,105600.0,105590.0,1.56825841]
[1750723733146,0.0051,105600.0,105590.0,1.85013155]
[1750723733362,0.0051,105600.0,105590.0,1.56825841]
[1750723734028,0.0051,105600.0,105590.0,1.51825841]
[1750723735418,0.0051,105600.0,105590.0,1.23638527]
[1750723735637,0.0051,105600.0,105590.0,1.51825841]
[1750723737399,0.0051,105600.0,105590.0,1.72581841]
[1750723738360,0.0051,105600.0,105590.0,1.71127756]
[1750723739159,0.0051,105600.0,105590.0,1.50371756]
[1750723739344,0.0051,105600.0,105590.0,1.71123756]
[1750723741015,0.0051,105600.0,105590.0,1.41386442]
[1750723741218,0.0204,105600.0,105590.0,0.61494442]
[1750723741424,0.0368,105600.0,105590.0,0.77766442]
[1750723741783,0.0368,105600.0,105590.0,1.05953756]
[1750723742201,0.0368,105600.0,105590.0,1.55953756]
[1750723743730,0.0051,105600.0,105590.0,1.55953756]
[1750723744420,0.0051,105600.0,105590.0,1.05953756]
[1750723744949,0.0365,105600.0,105590.0,1.05953756]
[1750723745157,0.0365,105600.0,105590.0,0.85201756]
[1750723745344,0.0365,105600.0,105590.0,1.05953756]
[1750723745560,0.0365,105600.0,105590.0,0.89681756]
[1750723745873,0.0365,105600.0,105590.0,1.05953756]
[1750723746803,0.0365,105600.0,105590.0,0.68216256]
[1750723747225,0.0365,105600.0,105590.0,0.9640357]
[1750723747469,0.0365,105600.0,105590.0,1.05953756]
[1750723747470,0.0051,105600.0,105590.0,1.05953756]
[1750723750350,0.0051,105600.0,105590.0,1.09223756]
[1750723751595,0.0051,105600.0,105590.0,1.72865155]
[1750723751807,0.0051,105600.0,105590.0,1.77865155]
[1750723752074,0.0051,105600.0,105590.0,1.49677841]
[1750723753536,0.0051,105600.0,105590.0,1.79297841]
[1750723754320,0.0051,105600.0,105590.0,2.29297841]
[1750723755882,0.0051,105600.0,105590.0,2.24297841]
[1750723756480,0.0051,105600.0,105590.0,2.29297841]
[1750723756857,0.0051,105600.0,105590.0,2.57485155]
[1750723757093,0.0051,105600.0,105590.0,2.07485155]
[1750723760843,0.0051,105600.0,105590.0,2.06985155]
[1750723761262,0.0061,105600.0,105590.0,2.07785155]
[1750723761586,0.0061,105600.0,105590.0,2.57785155]
[1750723762650,0.0061,105600.0,105590.0,2.56985155]
[1750723762864,0.0061,105600.0,105590.0,2.57685155]
[1750723767314,0.0061,105600.0,105590.0,2.07685155]
[1750723768191,0.0061,105600.0,105590.0,1.53745841]
[1750723768316,0.0061,105600.0,105590.0,1.71223841]
[1750723768735,0.0386,105600.0,105590.0,1.69769756]
[1750723769566,0.0386,105600.0,105590.0,0.64082442]
[1750723769790,0.0386,105600.0,105590.0,0.75280256]
[1750723770398,0.0386,105600.0,105590.0,1.0346757]
[1750723770540,0.0376,105600.0,105590.0,1.0266757]
[1750723771022,0.0376,105600.0,105590.0,1.0296757]
[1750723771225,0.0376,105600.0,105590.0,0.7334757]
[1750723771436,0.0376,105600.0,105590.0,0.7304757]
[1750723772088,0.0376,105600.0,105590.0,1.2304757]
[1750723772320,0.0376,105600.0,105590.0,1.2334757]
[1750723772878,0.0376,105600.0,105590.0,1.2264757]
[1750723773141,0.0376,105600.0,105590.0,1.0026957]
[1750723773353,0.0376,105600.0,105590.0,0.92830256]
[1750723774341,0.0376,105600.0,105590.0,0.93130256]
[1750723776223,0.0376,105600.0,105590.0,1.2131757]
[1750723777867,0.0376,105600.0,105590.0,0.7131757]
[1750723778465,0.0376,105600.0,105590.0,0.7416467]
[1750723780756,0.0376,105600.0,105590.0,0.7131757]
[1750723780970,0.0051,105600.0,105590.0,0.80867756]
[1750723781178,0.0051,105600.0,105590.0,0.83714656]
[1750723781395,0.0051,105600.0,105590.0,1.33714656]
[1750723781597,0.0051,105600.0,105590.0,1.05527342]
[1750723781802,0.0051,105600.0,105590.0,1.33714656]
[1750723782622,0.0051,105600.0,105590.0,1.72318741]
[1750723783033,0.0051,105600.0,105590.0,2.01938741]
[1750723786628,0.0051,105600.0,105590.0,2.30126055]
[1750723786871,0.0051,105600.0,105590.0,1.80126055]
[1750723787870,0.0051,105600.0,105590.0,1.85126055]
[1750723788697,0.0051,105600.0,105590.0,2.07874055]
[1750723790984,0.0051,105600.0,105590.0,2.12874055]
[1750723791612,0.0051,105600.0,105590.0,2.62874055]
[1750723791815,0.0051,105600.0,105590.0,2.62574055]
[1750723792020,0.0051,105600.0,105590.0,2.63174055]
[1750723792226,0.0051,105600.0,105590.0,2.62874055]
[1750723792438,0.0051,105600.0,105590.0,2.63474055]
[1750723792746,0.0051,105600.0,105590.0,2.58474055]
[1750723792955,0.0051,105600.0,105590.0,2.63474055]
[1750723793639,0.0051,105600.0,105590.0,2.22136741]
[1750723794048,0.0051,105600.0,105590.0,2.22128741]
[1750723794263,0.0051,105600.0,105590.0,2.27128741]
[1750723794692,0.0051,105600.0,105590.0,2.32128741]
[1750723794913,0.0051,105600.0,105590.0,2.63456055]
[1750723795128,0.0051,105600.0,105590.0,2.35268741]
[1750723795575,0.0051,105600.0,105590.0,2.63456055]
[1750723796639,0.0051,105600.0,105590.0,2.32128741]
[1750723796883,0.0051,105600.0,105590.0,1.82128741]
[1750723797754,0.0051,105600.0,105590.0,1.77128741]
[1750723797952,0.0051,105600.0,105590.0,2.11956055]
[1750723798359,0.0051,105600.0,105590.0,2.13456055]
[1750723800058,0.0051,105600.0,105590.0,2.08456055]
[1750723800271,0.0051,105600.0,105590.0,2.13456055]
[1750723802079,0.0051,105600.0,105590.0,2.63456055]
[1750723803256,0.0001,105620.0,105610.0,0.26778132]
[1750723803468,0.00023831,105620.0,105610.0,1.12084946]
[1750723803689,0.00023831,105620.0,105610.0,1.97159031]
[1750723803941,0.0001,105630.0,105620.0,1.26734782]
[1750723804155,0.00056104,105630.0,105620.0,1.97415971]
[1750723804362,0.0001,105640.0,105630.0,0.69084007]
[1750723804571,0.0001,105640.0,105630.0,1.52714906]
[1750723804779,0.0001,105640.0,105630.0,1.72714906]
[1750723805423,0.0001,105640.0,105630.0,2.22714906]
[1750723806007,0.0001,105640.0,105630.0,2.23314906]
[1750723806632,0.0001,105640.0,105630.0,2.54323345]
[1750723806827,0.0001,105640.0,105630.0,2.54423345]
[1750723807244,0.0001,105640.0,105630.0,2.53823345]
[1750723807685,0.0001,105640.0,105630.0,2.54323345]
[1750723807876,0.0001,105640.0,105630.0,2.53823345]
[1750723808288,0.0001,105640.0,105630.0,2.54523345]
[1750723809137,0.0001,105640.0,105630.0,2.26336031]
[1750723809540,0.0001,105640.0,105630.0,2.05084031]
[1750723809754,0.0001,105640.0,105630.0,1.75319946]
[1750723809952,0.0001,105640.0,105630.0,1.96035946]
[1750723810182,0.0166,105640.0,105630.0,1.76774031]
[1750723810390,0.033,105640.0,105630.0,1.33848632]
[1750723810591,0.033,105640.0,105630.0,0.84945318]
[1750723810763,0.033,105640.0,105630.0,0.72474007]
[1750723810955,0.033,105640.0,105630.0,0.93190007]
[1750723811371,0.033,105640.0,105630.0,1.27190007]
[1750723811574,0.033,105640.0,105630.0,0.93090007]
[1750723811783,0.033,105640.0,105630.0,0.93590007]
[1750723812257,0.033,105640.0,105630.0,0.93090007]
[1750723812426,0.034,105640.0,105630.0,0.93090007]
[1750723812653,0.034,105640.0,105630.0,0.42490007]
[1750723813140,0.034,105640.0,105630.0,0.21774007]
[1750723813289,0.034,105640.0,105630.0,0.42490007]
[1750723814252,0.034,105640.0,105630.0,0.19880705]
[1750723814452,0.034,105640.0,105630.0,0.42490007]
[1750723814657,0.034,105640.0,105630.0,0.20716]
[1750723814862,0.034,105640.0,105630.0,0.22609382]
[1750723815105,0.31587314,105640.0,105630.0,0.04472]
[1750723815315,0.28297314,105640.0,105630.0,0.16244]
[1750723815508,0.28297314,105640.0,105620.0,0.42492051]
[1750723815712,0.28297314,105640.0,105620.0,0.43438715]
[1750723815917,0.0316,105630.0,105620.0,0.43438715]
[1750723817041,0.0316,105630.0,105620.0,0.93438715]
[1750723817243,0.0316,105630.0,105620.0,0.92492006]
[1750723817457,0.0316,105630.0,105620.0,0.93438805]
[1750723818432,0.0326,105630.0,105620.0,0.93438805]
[1750723819511,0.0356,105630.0,105620.0,0.93438805]
[1750723822609,0.0356,105630.0,105620.0,0.43438805]
[1750723823603,0.0356,105630.0,105620.0,0.71626119]
[1750723824025,0.004,105630.0,105620.0,0.81176305]
[1750723824451,0.004,105630.0,105620.0,1.10796305]
[1750723825291,0.0319,105640.0,105630.0,0.21774007]
[1750723825499,0.0319,105640.0,105630.0,0.49861321]
[1750723826106,0.0319,105640.0,105630.0,0.52707321]
[1750723826243,0.0319,105640.0,105630.0,0.24520007]
[1750723829574,0.0319,105640.0,105630.0,0.23673369]
[1750723829772,0.31377314,105640.0,105630.0,0.27186705]
[1750723829971,0.31377314,105640.0,105630.0,0.22589391]
[1750723830180,0.31377314,105640.0,105630.0,0.216427]
[1750723830383,0.0319,105640.0,105630.0,0.216427]
[1750723830586,0.47237743,105640.0,105630.0,0.05406691]
[1750723830929,0.47237743,105640.0,105630.0,0.26234033]
[1750723830930,0.0319,105640.0,105630.0,0.26234033]
[1750723831141,0.0319,105640.0,105630.0,0.27180706]
[1750723831770,0.0319,105640.0,105630.0,0.27180661]
[1750723831976,0.0319,105640.0,105630.0,0.28127299]
[1750723835303,0.0319,105640.0,105630.0,0.30973699]
[1750723835695,0.0319,105640.0,105630.0,0.28127299]
[1750723835944,0.0319,105640.0,105630.0,0.30973799]
[1750723836138,0.0319,105640.0,105630.0,0.28127299]
[1750723839453,0.0319,105640.0,105630.0,0.27180661]
[1750723839669,0.031,105630.0,105620.0,0.22728997]
[1750723839874,0.031,105630.0,105620.0,0.45314505]
[1750723840077,0.031,105630.0,105620.0,0.43414859]
[1750723841037,0.032,105630.0,105620.0,0.43414859]
[1750723841241,0.032,105630.0,105620.0,0.43414868]
[1750723841490,0.033,105630.0,105620.0,0.44361595]
[1750723842045,0.033,105630.0,105620.0,0.43414868]
[1750723842491,0.0302,105620.0,105610.0,0.24344471]
[1750723842699,0.0302,105620.0,105610.0,0.41519297]
[1750723842909,0.0302,105620.0,105610.0,0.25291306]
[1750723843119,0.0302,105620.0,105610.0,0.41519306]
[1750723843523,0.0302,105620.0,105610.0,0.41519315]
[1750723843758,0.0302,105620.0,105610.0,0.40572471]
[1750723843961,0.0302,105620.0,105610.0,0.41519333]
[1750723844365,0.0302,105620.0,105610.0,0.22581733]
[1750723844568,0.0302,105620.0,105610.0,0.23528577]
[1750723844782,0.0302,105620.0,105610.0,0.22581733]
[1750723844989,0.0302,105620.0,105610.0,0.0824743]
[1750723845192,0.0302,105620.0,105610.0,0.05406871]
[1750723845395,0.0302,105620.0,105610.0,0.06353733]
[1750723845597,0.03974535,105620.0,105610.0,0.05406871]
[1750723846010,0.03974535,105620.0,105610.0,0.25291333]
[1750723846733,0.03974535,105620.0,105590.0,0.21787899]
[1750723846734,0.6332971,105620.0,105590.0,0.21787899]
[1750723846944,0.0319,105590.0,105580.0,0.0446]
[1750723847167,0.0319,105590.0,105570.0,0.073274]
[1750723847168,0.0319,105580.0,105570.0,0.073274]
[1750723847386,0.47237743,105580.0,105570.0,0.02913504]
[1750723847616,0.90787929,105580.0,105570.0,0.02913504]
[1750723847797,0.90787929,105580.0,105560.0,0.0002]
[1750723847798,0.47207743,105570.0,105560.0,0.0002]
[1750723848057,0.56757929,105570.0,105560.0,0.00033831]
[1750723848268,0.12710186,105570.0,105560.0,0.00033831]
[1750723848488,0.56757929,105570.0,105560.0,0.00033831]
[1750723849133,0.56857929,105570.0,105560.0,0.00033831]
[1750723849777,0.90857929,105570.0,105560.0,0.00033831]
[1750723849989,0.90609929,105570.0,105560.0,0.00033831]
[1750723850201,0.93402863,105570.0,105560.0,0.00033831]
[1750723851688,0.96251663,105570.0,105560.0,0.00033831]
[1750723852532,0.6843192,105570.0,105560.0,0.00033831]
[1750723852742,1.2097694,105570.0,105560.0,0.00033831]
[1750723852974,1.14133748,105570.0,105560.0,0.00033831]
[1750723856506,0.96451663,105570.0,105560.0,0.00033831]
[1750723856749,1.12683663,105570.0,105560.0,0.00033831]
[1750723858853,1.09834863,105570.0,105560.0,0.00033831]
[1750723859541,1.09834863,105570.0,105560.0,0.20875012]
[1750723859542,0.1555512,105570.0,105560.0,0.20875012]
[1750723859770,0.1555512,105570.0,105560.0,0.26278277]
[1750723859771,0.031488,105570.0,105560.0,0.26278277]
[1750723859988,0.003,105570.0,105560.0,0.26278277]
[1750723860203,0.003,105570.0,105560.0,0.21822277]
[1750723860426,0.003,105570.0,105560.0,0.26278277]
[1750723860916,0.372,105590.0,105570.0,0.2273231]
[1750723861150,0.12750186,105590.0,105570.0,0.2273231]
[1750723861371,0.12750186,105590.0,105570.0,0.21785152]
[1750723861594,0.12750186,105590.0,105570.0,0.22732327]
[1750723861841,0.12750186,105590.0,105570.0,0.23679494]
[1750723862020,0.46750186,105590.0,105570.0,0.22732327]
[1750723862279,0.47350186,105590.0,105570.0,0.22732327]
[1750723862502,0.47350186,105590.0,105570.0,0.20837968]
[1750723862724,0.89777929,105590.0,105560.0,0.25330958]
[1750723862940,0.11080186,105580.0,105560.0,0.25331012]
[1750723863176,0.11080186,105580.0,105560.0,0.26278313]
[1750723863177,0.12580186,105580.0,105560.0,0.26278313]
[1750723863402,0.56627929,105580.0,105560.0,0.0543715]
[1750723863660,0.56627929,105580.0,105560.0,0.05437159]
[1750723863908,0.56627929,105580.0,105560.0,0.04489831]
[1750723864148,0.031,105570.0,105560.0,0.00033831]
[1750723864351,0.12650186,105570.0,105560.0,0.00981159]
[1750723865196,0.12650186,105570.0,105560.0,0.01928478]
[1750723865410,0.12650186,105570.0,105560.0,0.00033831]
[1750723865624,0.12650186,105570.0,105560.0,0.00233831]
[1750723866042,0.56697929,105570.0,105560.0,0.00233831]
[1750723866707,0.90697929,105570.0,105560.0,0.00233831]
[1750723867558,0.92951124,105570.0,105560.0,0.00233831]
[1750723867775,0.92951124,105570.0,105560.0,0.00033831]
[1750723868275,0.95005209,105570.0,105560.0,0.00033831]
[1750723868526,0.95105209,105570.0,105560.0,0.00033831]
[1750723868729,0.98281249,105570.0,105560.0,0.00033831]
[1750723868907,0.98181249,105570.0,105560.0,0.00033831]
[1750723869360,0.98481249,105570.0,105560.0,0.00033831]
[1750723869854,0.63980501,105570.0,105560.0,0.00033831]
[1750723870076,0.50464602,105570.0,105560.0,0.00033831]
[1750723870299,0.66035381,105570.0,105560.0,0.00033831]
[1750723871827,0.66697839,105570.0,105560.0,0.00033831]
[1750723872671,1.10745582,105570.0,105560.0,0.00033831]
[1750723873389,1.21746662,105570.0,105560.0,0.00033831]
[1750723873615,1.24576871,105570.0,105560.0,0.00033831]
[1750723873845,1.13575791,105570.0,105560.0,0.00033831]
[1750723874496,1.1911941,105570.0,105560.0,0.00033831]
[1750723875146,1.0288741,105570.0,105560.0,0.00033831]
[1750723875369,1.1911941,105570.0,105560.0,0.00033831]
[1750723875568,1.16289201,105570.0,105560.0,0.00033831]
[1750723875792,1.2583641,105570.0,105560.0,0.00033831]
[1750723876009,1.30834371,105570.0,105560.0,0.00033831]
[1750723876223,1.3006384,105570.0,105560.0,0.00033831]
[1750723876448,1.31950646,105570.0,105560.0,0.00033831]
[1750723877095,1.31950646,105570.0,105540.0,0.0002]
[1750723877096,0.81237743,105550.0,105540.0,0.0002]
[1750723877324,1.16557626,105550.0,105540.0,0.00024611]
[1750723878206,1.26932377,105550.0,105540.0,0.00024611]
[1750723878479,1.26932377,105550.0,105540.0,0.00124611]
[1750723878480,1.29781877,105550.0,105540.0,0.00124611]
[1750723878703,6.91418253,105550.0,105540.0,0.00124611]
[1750723878910,0.51887868,105540.0,105530.0,0.0002]
[1750723879128,0.66129427,105540.0,105530.0,0.00024612]
[1750723879538,0.71803325,105540.0,105530.0,0.00024612]
[1750723879745,0.71138711,105540.0,105530.0,0.00024612]
[1750723879955,0.71803336,105540.0,105530.0,0.00024612]
[1750723880138,0.77720939,105540.0,105530.0,0.00024612]
[1750723880343,0.71803336,105540.0,105530.0,0.00024612]
[1750723881227,0.68627296,105540.0,105530.0,0.00024612]
[1750723881440,0.71803336,105540.0,105530.0,0.00024612]
[1750723881649,0.72003336,105540.0,105530.0,0.00024612]
[1750723881852,0.72199525,105540.0,105530.0,0.00024612]
[1750723882059,0.8174652,105540.0,105530.0,0.00024612]
[1750723883956,0.84663838,105540.0,105530.0,0.00024612]
[1750723884180,0.85608086,105540.0,105530.0,0.00024612]
[1750723884679,0.8560618,105540.0,105530.0,0.00024612]
[1750723885571,0.89379143,105540.0,105530.0,0.00024612]
[1750723886396,0.87610592,105540.0,105530.0,0.00024612]
[1750723888046,0.87570592,105540.0,105530.0,0.00024612]
[1750723890130,1.26570592,105540.0,105530.0,0.00024612]
[1750723890342,6.29692546,105540.0,105530.0,0.00024612]
[1750723890570,6.71333731,105540.0,105530.0,0.00024612]
[1750723890783,6.78880956,105540.0,105530.0,0.00024612]
[1750723891198,6.79628392,105540.0,105530.0,0.00024612]
[1750723891423,6.71881167,105540.0,105530.0,0.00024612]
[1750723891629,6.73181167,105540.0,105530.0,0.00024612]
[1750723891838,6.79780956,105540.0,105530.0,0.00024612]
[1750723892042,6.79280956,105540.0,105530.0,0.00024612]
[1750723892445,6.72333731,105540.0,105530.0,0.00124612]
[1750723892649,6.79880956,105540.0,105530.0,0.00124612]
[1750723892826,6.72333731,105540.0,105530.0,0.00124612]
[1750723893062,6.62786736,105540.0,105530.0,0.00124612]
[1750723893264,6.83481764,105540.0,105530.0,0.00124612]
[1750723893471,6.57785764,105540.0,105530.0,0.00124612]
[1750723893676,1.70098805,105540.0,105530.0,0.00124612]
[1750723893859,1.7155289,105540.0,105530.0,0.00124612]
[1750723894095,1.81099885,105540.0,105530.0,0.00124612]
[1750723894336,1.7155289,105540.0,105530.0,0.00124612]
[1750723895286,1.80676366,105540.0,105530.0,0.00124612]
[1750723895479,6.80968663,105540.0,105530.0,0.00124612]
[1750723895701,6.85436663,105540.0,105530.0,0.00124612]
[1750723895926,7.02530883,105540.0,105530.0,0.00124612]
[1750723896146,7.00635984,105540.0,105530.0,0.00124612]
[1750723896371,6.88088759,105540.0,105530.0,0.00124612]
[1750723896851,6.57825764,105540.0,105530.0,0.00124612]
[1750723897061,6.78541764,105540.0,105530.0,0.00124612]
[1750723897285,6.8420121,105540.0,105530.0,0.00124612]
[1750723897743,6.8419721,105540.0,105530.0,0.00124612]
[1750723898579,1.7602117,105540.0,105530.0,0.00124612]
[1750723898998,1.081775,105540.0,105530.0,0.00124612]
[1750723899184,1.65003424,105540.0,105530.0,0.00124612]
[1750723899417,1.75781254,105540.0,105530.0,0.00124612]
[1750723899636,1.81771314,105540.0,105530.0,0.00124612]
[1750723899842,1.78941254,105540.0,105530.0,0.00124612]
[1750723900297,1.840007,105540.0,105530.0,0.00024612]
[1750723900508,1.78441254,105540.0,105530.0,0.00024612]
[1750723900861,1.77641254,105540.0,105530.0,0.00024612]
[1750723901070,1.77941254,105540.0,105530.0,0.00024612]
[1750723901253,1.81117294,105540.0,105530.0,0.00024612]
[1750723901451,1.83948776,105540.0,105530.0,0.00024612]
[1750723901660,1.81117294,105540.0,105530.0,0.00024612]
[1750723902583,6.86117294,105540.0,105530.0,0.00024612]
[1750723902782,6.88003113,105540.0,105530.0,0.00024612]
[1750723903360,6.88004629,105540.0,105530.0,0.00024612]
[1750723903766,6.88000629,105540.0,105530.0,0.00024612]
[1750723903969,6.84824589,105540.0,105530.0,0.00024612]
[1750723904414,6.88604568,105540.0,105530.0,0.00024612]
[1750723904815,6.8482463,105540.0,105530.0,0.00024612]
[1750723905645,6.88606587,105540.0,105530.0,0.00024612]
[1750723905812,6.8482463,105540.0,105530.0,0.00024612]
[1750723906217,6.45776887,105540.0,105530.0,0.00024612]
[1750723906474,6.8982463,105540.0,105530.0,0.00024612]
[1750723906688,6.45776887,105540.0,105530.0,0.00024612]
[1750723906866,6.8982463,105540.0,105530.0,0.00024612]
[1750723907074,6.59260885,105540.0,105530.0,0.00024612]
[1750723907286,6.75500885,105540.0,105530.0,0.00024612]
[1750723907697,6.78676925,105540.0,105530.0,0.00024612]
[1750723908305,6.85488124,105540.0,105530.0,0.00024612]
[1750723908514,6.91171718,105540.0,105530.0,0.00024612]
[1750723908652,7.01930027,105540.0,105530.0,0.00024612]
[1750723909054,6.87262084,105540.0,105530.0,0.00024612]
[1750723909268,6.93893808,105540.0,105530.0,0.00024612]
[1750723909487,6.9010441,105540.0,105530.0,0.00024612]
[1750723909687,6.92615768,105540.0,105530.0,0.00024612]
[1750723909899,6.44592059,105540.0,105530.0,0.00024612]
[1750723910126,7.10657442,105540.0,105530.0,0.00024612]
[1750723910704,7.07815107,105540.0,105530.0,0.00024612]
[1750723911132,7.08481368,105540.0,105530.0,0.00024612]
[1750723911359,7.09428804,105540.0,105530.0,0.00024612]
[1750723911518,7.07533941,105540.0,105530.0,0.00024612]
[1750723913132,6.69199721,105540.0,105530.0,0.00024612]
[1750723913340,6.89907721,105540.0,105530.0,0.00024612]
[1750723913554,6.94907721,105540.0,105530.0,0.00024612]
[1750723913772,6.69199721,105540.0,105530.0,0.00024612]
[1750723913986,6.94895721,105540.0,105530.0,0.00024612]
[1750723914190,7.04442716,105540.0,105530.0,0.00024612]
[1750723915018,7.04442828,105540.0,105530.0,0.00024612]
[1750723916827,7.11990157,105540.0,105530.0,0.00024612]
[1750723920632,7.42144232,105540.0,105530.0,0.00024612]